bitfinex/quotes_BTCUSD_20240721
["timestamp","ask_amount","ask_price","bid_price","bid_amount"]
[1721594349003,0.00339155,68087.0,68086.0,1.16090108]
[1721594349252,0.00084,68096.0,68095.0,0.872128]
[1721594349520,0.00084,68096.0,68095.0,1.37556089]
[1721594349738,0.00084,68096.0,68095.0,1.19263733]
[1721594349946,0.00084,68096.0,68095.0,1.37591423]
[1721594350150,0.00084,68096.0,68095.0,1.42591423]
[1721594350359,0.00084,68096.0,68095.0,1.42592018]
[1721594350789,0.00084,68096.0,68095.0,1.37552139]
[1721594351007,0.00084,68096.0,68095.0,1.08181439]
[1721594351230,0.00084,68096.0,68095.0,1.14620786]
[1721594351449,0.00184,68096.0,68095.0,1.10981439]
[1721594351678,0.00184,68096.0,68095.0,0.48085206]
[1721594351885,0.00184,68096.0,68095.0,0.41989071]
[1721594352108,0.00184,68096.0,68095.0,0.34129071]
[1721594352318,0.00184,68096.0,68095.0,0.053668]
[1721594352533,0.14885991,68096.0,68095.0,0.053668]
[1721594352753,0.14912771,68096.0,68095.0,0.028]
[1721594353217,0.23202771,68096.0,68095.0,0.028]
[1721594353420,0.26092771,68096.0,68095.0,0.014]
[1721594353625,0.26092771,68096.0,68090.0,0.025668]
[1721594353833,0.14701991,68095.0,68090.0,0.025668]
[1721594355370,0.14701991,68095.0,68083.0,0.025668]
[1721594355371,0.07348942,68094.0,68083.0,0.025668]
[1721594355594,0.07348942,68094.0,68074.0,0.0786]
[1721594355595,0.14701991,68093.0,68080.0,0.025668]
[1721594355858,0.0995,68092.0,68082.0,0.025668]
[1721594356064,0.14701991,68091.0,68082.0,0.025668]
[1721594356284,0.023,68090.0,68082.0,0.025668]
[1721594356510,0.14701991,68089.0,68082.0,0.025668]
[1721594356714,0.14728771,68089.0,68082.0,0.025668]
[1721594357778,0.14728771,68089.0,68082.0,0.026668]
[1721594359461,0.14728771,68089.0,68082.0,0.030668]
[1721594359664,0.14728771,68089.0,68082.0,0.026668]
[1721594359867,0.14728771,68089.0,68082.0,0.025668]
[1721594360068,0.14828771,68089.0,68082.0,0.025668]
[1721594360482,0.14728771,68089.0,68088.0,0.025668]
[1721594360887,0.14828771,68089.0,68088.0,0.025668]
[1721594361089,0.15028771,68089.0,68088.0,0.025668]
[1721594361293,0.14928771,68089.0,68088.0,0.025668]
[1721594361713,0.15428771,68089.0,68088.0,0.025668]
[1721594365492,0.14928771,68089.0,68088.0,0.025668]
[1721594366450,0.15028771,68089.0,68088.0,0.025668]
[1721594367011,0.15128771,68089.0,68088.0,0.025668]
[1721594367213,0.004,68089.0,68088.0,0.025668]
[1721594367417,0.003,68089.0,68088.0,0.28982919]
[1721594367618,0.003,68089.0,68088.0,0.167868]
[1721594367792,0.00084,68096.0,68095.0,0.025668]
[1721594369204,0.00084,68096.0,68095.0,0.027668]
[1721594369864,0.00084,68096.0,68095.0,0.169868]
[1721594370361,0.00084,68096.0,68095.0,0.29180482]
[1721594370575,0.00084,68096.0,68095.0,0.169868]
[1721594370813,0.00084,68096.0,68095.0,0.29180574]
[1721594371253,0.00084,68096.0,68095.0,0.28980574]
[1721594371463,0.00184,68096.0,68095.0,0.29980574]
[1721594371671,0.00184,68096.0,68095.0,0.167868]
[1721594371869,0.00184,68096.0,68095.0,0.28980792]
[1721594372076,0.00284,68096.0,68095.0,0.30080792]
[1721594372284,0.00284,68096.0,68095.0,0.178868]
[1721594372920,0.00084,68096.0,68095.0,0.167868]
[1721594373148,0.00084,68096.0,68095.0,0.174868]
[1721594373689,0.00084,68096.0,68095.0,0.17080448]
[1721594373904,0.00084,68096.0,68095.0,0.18380448]
[1721594374185,0.00084,68096.0,68095.0,0.33065748]
[1721594374442,0.00084,68096.0,68095.0,0.43065748]
[1721594374695,0.00084,68096.0,68095.0,0.28380448]
[1721594375014,0.14785991,68096.0,68095.0,0.10390448]
[1721594375237,0.14785991,68096.0,68095.0,0.013]
[1721594375475,0.14885991,68096.0,68095.0,0.027]
[1721594375718,0.14912771,68096.0,68095.0,0.027]
[1721594376194,0.25892771,68096.0,68095.0,0.027]
[1721594376424,0.25892771,68096.0,68095.0,0.014]
[1721594376678,0.25792771,68096.0,68091.0,0.025668]
[1721594376917,0.1109078,68096.0,68095.0,0.009]
[1721594377169,0.28092771,68096.0,68095.0,0.009]
[1721594377675,0.28092771,68096.0,68095.0,0.006]
[1721594378451,0.28092771,68096.0,68091.0,0.003]
[1721594378691,0.28092771,68096.0,68091.0,0.009]
[1721594378692,0.14701991,68095.0,68091.0,0.009]
[1721594379174,0.14701991,68095.0,68091.0,0.003]
[1721594379409,0.14701991,68095.0,68088.0,0.025668]
[1721594380155,0.22050933,68089.0,68078.0,0.002794]
[1721594380405,0.22050933,68089.0,68070.0,0.04869259]
[1721594380406,0.14701991,68083.0,68070.0,0.04869259]
[1721594380642,0.14701991,68083.0,68070.0,0.025668]
[1721594380888,0.023,68082.0,68070.0,0.025668]
[1721594381136,0.14701991,68081.0,68070.0,0.025668]
[1721594381415,0.023,68080.0,68070.0,0.025668]
[1721594381638,0.14701991,68079.0,68070.0,0.025668]
[1721594381863,0.023,68078.0,68070.0,0.025668]
[1721594382089,0.14701991,68077.0,68070.0,0.025668]
[1721594382579,0.14701991,68077.0,68070.0,0.026668]
[1721594383253,0.14701991,68077.0,68066.0,0.0637]
[1721594383255,0.003,68080.0,68079.0,0.025668]
[1721594383464,0.15001991,68080.0,68079.0,0.025668]
[1721594383679,0.14701991,68080.0,68079.0,0.025668]
[1721594384558,0.14701991,68080.0,68071.0,0.025668]
[1721594384559,0.25521991,68080.0,68071.0,0.025668]
[1721594384775,0.14701991,68079.0,68071.0,0.025668]
[1721594385218,0.10935541,68079.0,68071.0,0.025668]
[1721594386545,0.11135541,68079.0,68071.0,0.026668]
[1721594386984,0.11135541,68079.0,68072.0,0.0608]
[1721594387201,0.11435541,68079.0,68072.0,0.0608]
[1721594388113,0.11435541,68079.0,68070.0,0.000924]
[1721594388114,0.14701991,68073.0,68070.0,0.000924]
[1721594388546,0.023,68072.0,68070.0,0.000924]
[1721594388814,0.14701991,68071.0,68070.0,0.000924]
[1721594389057,0.17001991,68071.0,68070.0,0.000924]
[1721594389700,0.17001991,68071.0,68070.0,0.002924]
[1721594389916,0.17001991,68071.0,68070.0,0.003924]
[1721594390143,0.17001991,68071.0,68070.0,0.069724]
[1721594390144,0.14701991,68071.0,68070.0,0.069724]
[1721594390355,0.14701991,68071.0,68070.0,0.007924]
[1721594390792,0.0783,68083.0,68076.0,0.025668]
[1721594391041,0.0299,68086.0,68076.0,0.025668]
[1721594391042,0.14701991,68082.0,68076.0,0.025668]
[1721594391923,0.14701991,68082.0,68077.0,0.0608]
[1721594392351,0.15501991,68082.0,68077.0,0.0608]
[1721594393186,0.14701991,68082.0,68077.0,0.0608]
[1721594393393,0.15501991,68082.0,68077.0,0.0618]
[1721594394004,0.15701991,68082.0,68077.0,0.0628]
[1721594394927,0.15701991,68082.0,68077.0,0.088468]
[1721594395134,0.14901991,68082.0,68077.0,0.087468]
[1721594395343,0.058844,68081.0,68080.0,0.025668]
[1721594395579,0.14701991,68081.0,68080.0,0.025668]
[1721594395827,0.0002678,68083.0,68080.0,1.15937733]
[1721594395828,0.058841,68083.0,68080.0,1.15937733]
[1721594396064,0.10973245,68105.0,68080.0,1.15937733]
[1721594396065,0.00837,68143.0,68142.0,0.775668]
[1721594396295,0.00837,68156.0,68142.0,0.775668]
[1721594396296,0.10968418,68185.0,68184.0,0.275668]
[1721594396506,0.004,68209.0,68188.0,0.515627]
[1721594396507,0.05,68201.0,68188.0,0.515627]
[1721594396729,0.00837,68195.0,68188.0,0.93070622]
[1721594396951,0.05,68201.0,68200.0,0.025668]
[1721594397404,0.0626,68207.0,68206.0,0.025668]
[1721594397621,0.0823,68209.0,68208.0,0.025668]
[1721594397622,0.004,68209.0,68208.0,0.025668]
[1721594398261,0.07348942,68238.0,68219.0,0.025668]
[1721594398481,0.00118745,68262.0,68205.0,2.47764642]
[1721594398482,0.05,68239.0,68228.0,0.025668]
[1721594398693,0.0626,68240.0,68223.0,0.025668]
[1721594398905,0.058728,68235.0,68223.0,0.025668]
[1721594399385,0.058728,68235.0,68208.0,0.002]
[1721594399386,0.0626,68240.0,68227.0,0.025668]
[1721594399605,0.0626,68240.0,68228.0,0.025668]
[1721594399815,0.0626,68240.0,68228.0,0.027668]
[1721594399816,0.005,68229.0,68228.0,0.027668]
[1721594400022,0.004,68229.0,68228.0,0.026668]
[1721594400484,0.005,68229.0,68228.0,0.026668]
[1721594400909,0.005,68229.0,68228.0,0.025668]
[1721594401809,0.005,68229.0,68228.0,2.381831]
[1721594401810,0.004,68229.0,68228.0,2.381831]
[1721594402051,0.0626,68240.0,68235.0,0.025668]
[1721594402263,0.0626,68240.0,68238.0,0.025668]
[1721594402487,0.14701991,68239.0,68233.0,0.025668]
[1721594402700,0.13220242,68252.0,68243.0,0.02539417]
[1721594402702,0.123413,68252.0,68243.0,0.02539417]
[1721594402912,0.123413,68252.0,68228.0,0.005]
[1721594402913,0.14701991,68248.0,68242.0,0.02539417]
[1721594403123,0.14701991,68248.0,68221.0,0.102794]
[1721594403124,0.14701991,68248.0,68243.0,0.02539417]
[1721594403352,0.0647,68252.0,68243.0,0.02539417]
[1721594403565,0.0647,68252.0,68235.0,0.001]
[1721594403566,0.0647,68252.0,68248.0,0.02539417]
[1721594403987,0.006,68249.0,68248.0,0.02539417]
[1721594404447,3.4888,68255.0,68253.0,0.02539417]
[1721594404673,3.4888,68255.0,68253.0,0.2459035]
[1721594404891,3.4888,68255.0,68253.0,0.57611716]
[1721594405115,3.4888,68255.0,68253.0,0.02539417]
[1721594405323,3.4888,68255.0,68252.0,0.02539417]
[1721594405324,0.0647,68253.0,68252.0,0.02539417]
[1721594405750,1.03623944,68254.0,68253.0,0.02539417]
[1721594405963,1.03623944,68254.0,68253.0,2.52857708]
[1721594406176,1.03623944,68254.0,68253.0,2.63957708]
[1721594406389,1.03623944,68254.0,68253.0,2.67180057]
[1721594406842,1.03623944,68254.0,68253.0,2.93520057]
[1721594407054,1.03623944,68254.0,68253.0,3.08171357]
[1721594407289,1.03623944,68254.0,68253.0,3.20471357]
[1721594407500,1.03623944,68254.0,68253.0,3.00820057]
[1721594407720,1.03623944,68254.0,68253.0,2.93520057]
[1721594408385,1.03623944,68254.0,68253.0,2.54096627]
[1721594408615,1.03623944,68254.0,68253.0,2.62857708]
[1721594408822,1.03623944,68254.0,68253.0,2.67973918]
[1721594409035,1.03623944,68254.0,68253.0,2.69373918]
[1721594409253,1.03623944,68254.0,68253.0,2.68673918]
[1721594409464,1.03623944,68254.0,68253.0,2.67273918]
[1721594409674,1.03623944,68254.0,68253.0,2.54771927]
[1721594409893,1.10972886,68254.0,68253.0,2.40355717]
[1721594410099,1.10972886,68254.0,68253.0,2.38155717]
[1721594410313,1.10972886,68254.0,68253.0,0.05339417]
[1721594410525,1.10972886,68254.0,68253.0,0.028]
[1721594410526,1.19082886,68254.0,68253.0,0.028]
[1721594410962,1.03623944,68254.0,68253.0,0.05339417]
[1721594411408,1.03623944,68254.0,68253.0,0.09414627]
[1721594411624,1.03470499,68254.0,68253.0,0.06614627]
[1721594411857,1.03470499,68254.0,68253.0,0.08514627]
[1721594412069,1.03470499,68254.0,68253.0,0.18041408]
[1721594412275,1.03470499,68254.0,68253.0,0.22116618]
[1721594412490,1.03470499,68254.0,68253.0,0.21816618]
[1721594412702,1.03470499,68254.0,68253.0,0.06787244]
[1721594412914,1.03470499,68254.0,68253.0,0.02712034]
[1721594413150,1.03470499,68254.0,68253.0,0.03212034]
[1721594413369,1.10819441,68254.0,68253.0,0.03012034]
[1721594413575,1.03470499,68254.0,68253.0,0.03012034]
[1721594414015,1.03470499,68254.0,68251.0,2.356163]
[1721594414016,0.0811,68253.0,68252.0,2.356163]
[1721594414232,0.0811,68253.0,68220.0,0.002794]
[1721594414233,0.07348942,68242.0,68238.0,0.02512034]
[1721594414472,0.14652,68250.0,68242.0,0.44093655]
[1721594414690,0.07348942,68247.0,68243.0,0.002794]
[1721594414901,0.14701991,68246.0,68237.0,0.02791434]
[1721594415152,0.14701991,68246.0,68238.0,0.02512034]
[1721594415365,0.14701991,68246.0,68239.0,0.02791434]
[1721594416003,0.14701991,68246.0,68243.0,0.001]
[1721594416436,0.489599,68244.0,68243.0,0.001]
[1721594416646,0.58661891,68244.0,68243.0,0.001]
[1721594416857,0.90268491,68244.0,68243.0,0.002]
[1721594417042,0.293084,68240.0,68228.0,0.02604434]
[1721594417306,0.0652,68243.0,68228.0,0.000924]
[1721594417307,0.30111991,68239.0,68228.0,0.000924]
[1721594417517,0.293101,68236.0,68229.0,0.002794]
[1721594417735,0.1885691,68230.0,68229.0,0.002794]
[1721594417954,0.57871501,68230.0,68229.0,0.002794]
[1721594418166,0.60171501,68230.0,68229.0,0.002794]
[1721594418382,0.89484101,68230.0,68229.0,0.002794]
[1721594418595,0.89484101,68230.0,68228.0,0.000924]
[1721594418596,0.146565,68229.0,68228.0,0.000924]
[1721594418806,0.60971491,68229.0,68228.0,0.000924]
[1721594419522,0.95284491,68229.0,68228.0,0.000924]
[1721594419746,0.293188,68216.0,68212.0,0.002794]
[1721594419974,0.05,68220.0,68202.0,0.07348942]
[1721594419975,0.43981,68211.0,68210.0,0.002794]
[1721594420218,0.43981,68211.0,68202.0,0.07348942]
[1721594420219,0.293212,68210.0,68202.0,0.07348942]
[1721594420424,0.293228,68207.0,68202.0,0.07348942]
[1721594420637,0.05,68209.0,68193.0,0.02512034]
[1721594420847,0.05,68209.0,68186.0,0.02512034]
[1721594420848,0.05,68205.0,68186.0,0.02512034]
[1721594421269,0.05,68199.0,68178.0,0.53954631]
[1721594421476,0.05,68199.0,68171.0,0.07348942]
[1721594421477,0.0798,68186.0,68183.0,0.02512034]
[1721594421685,0.078419,68186.0,68183.0,0.02512034]
[1721594421929,0.078419,68186.0,68179.0,0.02512034]
[1721594422147,0.20761991,68198.0,68171.0,0.07348942]
[1721594422148,0.293308,68188.0,68171.0,0.07348942]
[1721594422365,0.1548,68194.0,68172.0,0.02512034]
[1721594422366,0.146682,68175.0,68172.0,0.02512034]
[1721594422581,0.19701991,68185.0,68153.0,0.07348942]
[1721594422582,0.0606,68174.0,68169.0,0.02512034]
[1721594423034,0.0606,68174.0,68153.0,0.07348942]
[1721594423035,0.207283,68174.0,68165.0,0.02512034]
[1721594423261,0.0606,68174.0,68169.0,0.02512034]
[1721594423695,0.0606,68174.0,68168.0,0.02512034]
[1721594423902,0.0606,68174.0,68169.0,0.02512034]
[1721594424108,0.0616,68174.0,68169.0,0.02512034]
[1721594424785,0.14701991,68173.0,68165.0,0.02512034]
[1721594425201,0.22681991,68173.0,68165.0,0.02512034]
[1721594426059,0.0798,68173.0,68172.0,0.02512034]
[1721594426280,0.12076199,68197.0,68183.0,0.02512034]
[1721594426281,0.0606,68186.0,68183.0,0.02512034]
[1721594426495,0.14701991,68196.0,68183.0,0.02512034]
[1721594426727,0.36672342,68205.0,68179.0,0.0817]
[1721594426728,0.293183,68217.0,68184.0,0.19562967]
[1721594426947,0.1404,68224.0,68185.0,0.1275253]
[1721594426948,0.11015656,68216.0,68185.0,0.1275253]
[1721594427184,0.29361491,68215.0,68186.0,0.26881873]
[1721594427396,0.14701991,68215.0,68187.0,0.12179882]
[1721594427611,0.14701991,68215.0,68188.0,0.70975528]
[1721594427836,0.14701991,68215.0,68189.0,0.12473121]
[1721594428106,0.14701991,68215.0,68187.0,0.07348942]
[1721594428107,0.07348942,68223.0,68190.0,0.36881873]
[1721594428333,0.07348942,68223.0,68191.0,0.12179882]
[1721594428334,0.07348942,68207.0,68191.0,0.12179882]
[1721594428515,0.07348942,68207.0,68179.0,0.0817]
[1721594428516,0.22012142,68198.0,68180.0,0.002794]
[1721594428762,0.07348942,68198.0,68181.0,0.12179756]
[1721594428975,0.07348942,68198.0,68182.0,0.12459156]
[1721594429190,0.07348942,68198.0,68182.0,0.002794]
[1721594429191,0.14701991,68197.0,68182.0,0.002794]
[1721594429441,0.14701991,68197.0,68172.0,0.1021]
[1721594429442,0.14701991,68197.0,68183.0,0.12179659]
[1721594429677,0.14701991,68197.0,68177.0,0.44093655]
[1721594429908,0.14701991,68197.0,68178.0,0.22459142]
[1721594430120,0.003,68198.0,68179.0,0.12179742]
[1721594430334,0.07348942,68197.0,68180.0,0.12459142]
[1721594430564,0.22050933,68197.0,68181.0,0.12179742]
[1721594430776,0.22050933,68197.0,68182.0,0.12179742]
[1721594430777,0.23613827,68197.0,68182.0,0.12179742]
[1721594431000,0.23613827,68197.0,68183.0,0.12179742]
[1721594431001,0.22050933,68197.0,68183.0,0.12179742]
[1721594431216,0.22050933,68197.0,68173.0,0.14701991]
[1721594431436,0.14701991,68197.0,68177.0,0.44093655]
[1721594431656,0.14577701,68197.0,68178.0,0.002794]
[1721594431874,0.14577701,68197.0,68179.0,0.12179875]
[1721594431875,0.07348942,68194.0,68179.0,0.12179875]
[1721594432092,0.14677701,68197.0,68180.0,0.12459275]
[1721594432278,0.29341101,68197.0,68181.0,0.12179875]
[1721594432567,0.29341101,68197.0,68162.0,0.05029924]
[1721594432568,0.293291,68192.0,68162.0,0.05029924]
[1721594432785,0.14701991,68191.0,68166.0,0.27162654]
[1721594433005,0.29366691,68191.0,68167.0,0.12181263]
[1721594433212,0.29366691,68191.0,68161.0,0.07348942]
[1721594433213,0.001,68194.0,68168.0,0.34511596]
[1721594433443,0.14701991,68193.0,68169.0,0.12181263]
[1721594433658,0.0798,68199.0,68184.0,0.07348942]
[1721594433881,0.009,68192.0,68191.0,0.07348942]
[1721594434097,0.0606,68206.0,68191.0,0.34230272]
[1721594434320,0.0606,68206.0,68198.0,0.07348942]
[1721594434534,0.0606,68212.0,68199.0,0.12179339]
[1721594434782,0.0606,68212.0,68199.0,0.12176664]
[1721594435009,0.0606,68212.0,68192.0,0.14701991]
[1721594435010,0.05902669,68233.0,68200.0,0.00293229]
[1721594435227,0.1404,68225.0,68201.0,0.12176706]
[1721594435445,0.1404,68225.0,68192.0,0.1499521]
[1721594435446,0.14701991,68224.0,68202.0,0.78614513]
[1721594435670,0.14701991,68224.0,68203.0,0.12176706]
[1721594435875,0.1404,68225.0,68209.0,0.07348942]
[1721594436091,0.3097,68251.0,68211.0,0.0817]
[1721594436092,0.007,68212.0,68211.0,0.0817]
[1721594436311,0.007,68212.0,68211.0,0.35048697]
[1721594436729,0.013,68212.0,68211.0,0.35048697]
[1721594436945,0.006,68212.0,68211.0,0.35048697]
[1721594437380,0.006,68212.0,68211.0,0.12776706]
[1721594437381,0.007,68212.0,68211.0,0.12776706]
[1721594437591,0.1474,68212.0,68211.0,0.12776706]
[1721594437807,0.1474,68212.0,68211.0,0.006]
[1721594437808,0.60236291,68212.0,68211.0,0.006]
[1721594438021,0.74896391,68212.0,68211.0,0.006]
[1721594438496,0.31741991,68212.0,68211.0,0.006]
[1721594438742,0.05,68208.0,68200.0,200.0]
[1721594438956,0.146608,68209.0,68200.0,200.0]
[1721594439175,0.14701991,68207.0,68200.0,200.0]
[1721594439402,0.023,68206.0,68200.0,200.0]
[1721594439629,0.1414,68212.0,68191.0,0.07348942]
[1721594439630,0.1514,68212.0,68211.0,0.001]
[1721594439842,0.1514,68212.0,68209.0,0.07348942]
[1721594439843,0.32441991,68212.0,68209.0,0.07348942]
[1721594440052,0.1544,68212.0,68209.0,0.07348942]
[1721594440262,0.1404,68212.0,68209.0,0.07348942]
[1721594441028,0.1404,68212.0,68201.0,0.07348942]
[1721594441263,0.1404,68212.0,68202.0,0.12177154]
[1721594441511,0.1404,68212.0,68201.0,0.07348942]
[1721594441512,0.05,68210.0,68203.0,0.12177154]
[1721594441754,0.3155063,68211.0,68204.0,0.12177154]
[1721594441990,0.3155063,68211.0,68191.0,0.12372905]
[1721594441991,0.1689013,68211.0,68191.0,0.07348942]
[1721594442230,0.002,68206.0,68192.0,0.12178206]
[1721594442486,0.002,68206.0,68193.0,0.12178206]
[1721594442741,0.002,68206.0,68194.0,0.12178206]
[1721594442990,0.3155053,68211.0,68195.0,0.12178206]
[1721594443235,0.1459013,68211.0,68196.0,0.12178206]
[1721594443469,0.007,68210.0,68197.0,0.12178206]
[1721594443704,0.007,68210.0,68196.0,0.05023963]
[1721594443705,0.006,68206.0,68198.0,0.12178175]
[1721594443937,0.008,68206.0,68199.0,0.19527117]
[1721594444152,0.008,68206.0,68201.0,0.05028162]
[1721594444153,0.002,68206.0,68201.0,0.05028162]
[1721594444367,0.002,68206.0,68202.0,0.50693652]
[1721594444596,0.002,68206.0,68203.0,0.35472563]
[1721594444822,0.002,68206.0,68204.0,0.12178175]
[1721594445081,0.002,68206.0,68205.0,0.12178175]
[1721594445501,0.148614,68206.0,68205.0,0.12178175]
[1721594445712,0.148614,68206.0,68201.0,0.0138]
[1721594445713,0.196623,68202.0,68201.0,0.0138]
[1721594445945,1.42611109,68202.0,68201.0,0.13560013]
[1721594446167,0.264,68202.0,68201.0,0.0138]
[1721594446602,0.264,68202.0,68201.0,0.13560246]
[1721594446814,0.41101991,68202.0,68201.0,0.13839646]
[1721594447028,0.55764291,68202.0,68201.0,0.016594]
[1721594447239,0.41101991,68202.0,68201.0,0.13839598]
[1721594447460,0.55764291,68202.0,68201.0,0.13839598]
[1721594447706,0.57164291,68202.0,68201.0,0.13839598]
[1721594447892,0.42585991,68202.0,68201.0,0.13839598]
[1721594448165,0.43985991,68202.0,68201.0,0.13839598]
[1721594448609,0.58648291,68202.0,68201.0,0.13839598]
[1721594448831,0.42585991,68202.0,68201.0,0.13839598]
[1721594449040,0.42585991,68202.0,68201.0,0.21188987]
[1721594449041,0.42685991,68202.0,68201.0,0.21188987]
[1721594449250,0.40385991,68202.0,68201.0,0.21188987]
[1721594449694,0.14284,68202.0,68201.0,0.21287835]
[1721594450149,0.14384,68202.0,68201.0,0.21287835]
[1721594450372,0.14384,68202.0,68184.0,0.05030532]
[1721594450373,0.0647,68189.0,68184.0,0.05030532]
[1721594450581,0.0647,68189.0,68179.0,0.44093655]
[1721594450582,0.146658,68186.0,68180.0,0.05030532]
[1721594450795,0.0647,68189.0,68172.0,0.05030532]
[1721594450796,0.0763,68184.0,68172.0,0.05030532]
[1721594451005,0.0763,68184.0,68170.0,0.05030532]
[1721594451214,0.0763,68184.0,68174.0,0.05030532]
[1721594451692,0.07529325,68184.0,68174.0,0.05030532]
[1721594452316,0.07529325,68184.0,68183.0,0.003924]
[1721594452317,0.001,68184.0,68183.0,0.003924]
[1721594452987,0.1,68195.0,68183.0,0.003924]
[1721594453203,0.17001991,68194.0,68183.0,0.003924]
[1721594453657,0.0652,68196.0,68185.0,0.07348942]
[1721594454094,0.14701991,68195.0,68183.0,0.05425926]
[1721594454303,0.17001991,68195.0,68183.0,0.000924]
[1721594454721,0.25311991,68195.0,68183.0,0.000924]
[1721594454936,0.23011991,68195.0,68183.0,0.000924]
[1721594455159,0.1,68201.0,68185.0,0.07348942]
[1721594455356,0.008,68194.0,68186.0,0.15224923]
[1721594455626,0.008,68194.0,68185.0,0.12377899]
[1721594455861,0.007,68196.0,68186.0,0.1522436]
[1721594456077,0.006,68195.0,68185.0,0.12378098]
[1721594456295,0.009,68195.0,68186.0,0.15224375]
[1721594456512,0.009,68195.0,68187.0,0.15224375]
[1721594456724,0.003634,68202.0,68185.0,0.05029156]
[1721594456940,0.001,68194.0,68186.0,0.38522985]
[1721594457149,0.001,68194.0,68187.0,0.15224512]
[1721594457361,0.001,68194.0,68186.0,0.05029156]
[1721594457586,0.001,68194.0,68187.0,0.1522436]
[1721594457839,0.001,68194.0,68186.0,0.05229156]
[1721594458057,0.001,68194.0,68187.0,0.15224382]
[1721594458269,0.003634,68202.0,68186.0,0.05029156]
[1721594458476,0.003634,68202.0,68183.0,0.000924]
[1721594458477,0.001,68194.0,68189.0,0.07348942]
[1721594458692,0.001,68194.0,68187.0,0.15724339]
[1721594458693,0.001,68194.0,68190.0,0.50699749]
[1721594458904,0.001,68194.0,68191.0,0.50698644]
[1721594459127,0.001,68194.0,68192.0,0.50696497]
[1721594459128,0.002,68194.0,68192.0,0.50696497]
[1721594459342,0.001,68194.0,68193.0,0.60371463]
[1721594459553,0.002,68194.0,68193.0,0.60371463]
[1721594459974,0.001,68194.0,68193.0,0.60371463]
[1721594460429,0.002,68194.0,68193.0,0.60371463]
[1721594460866,0.002,68194.0,68193.0,0.45669472]
[1721594461535,0.001,68194.0,68193.0,0.45669472]
[1721594462174,0.001,68194.0,68193.0,0.46069472]
[1721594462388,0.001,68194.0,68193.0,0.60771463]
[1721594462614,0.002,68194.0,68193.0,0.61171463]
[1721594462824,0.002,68194.0,68193.0,0.68981463]
[1721594463049,0.002,68194.0,68193.0,1.04456428]
[1721594463269,0.00084,68202.0,68193.0,1.18036688]
[1721594463492,0.00084,68202.0,68199.0,0.04279277]
[1721594463708,0.00084,68202.0,68200.0,0.45663667]
[1721594463934,0.00084,68202.0,68201.0,0.12177091]
[1721594464189,0.00084,68202.0,68201.0,0.12177031]
[1721594464413,0.14785991,68202.0,68201.0,0.12177031]
[1721594464626,0.3489282,68202.0,68201.0,0.12177031]
[1721594464832,0.3489282,68202.0,68200.0,200.0]
[1721594464833,0.2023052,68202.0,68200.0,200.0]
[1721594465040,0.0626,68202.0,68200.0,200.0]
[1721594465267,0.0626,68202.0,68201.0,0.12179085]
[1721594465506,0.0626,68202.0,68200.0,200.0]
[1721594465930,0.0626,68202.0,68201.0,0.12179062]
[1721594466152,0.0626,68202.0,68201.0,0.20928004]
[1721594466380,0.0813,68203.0,68201.0,0.19528004]
[1721594466593,0.003,68202.0,68201.0,0.07348942]
[1721594466801,0.003,68202.0,68201.0,0.1952566]
[1721594467009,0.0813,68211.0,68201.0,0.1952566]
[1721594467010,0.002794,68210.0,68201.0,0.1952566]
[1721594467217,0.002794,68210.0,68209.0,0.07348942]
[1721594467430,0.002794,68210.0,68209.0,0.12176718]
[1721594467851,0.002794,68210.0,68201.0,0.001]
[1721594468065,0.002794,68210.0,68202.0,0.12177645]
[1721594468278,0.002794,68210.0,68203.0,0.12177645]
[1721594468494,0.002794,68210.0,68201.0,0.001]
[1721594468495,0.05,68208.0,68201.0,0.001]
[1721594468706,0.05,68208.0,68183.0,0.100924]
[1721594468707,0.146618,68205.0,68187.0,0.05020911]
[1721594468917,0.146618,68205.0,68188.0,0.12178587]
[1721594468918,0.14981391,68204.0,68188.0,0.12178587]
[1721594469160,0.2059859,68204.0,68189.0,0.12178587]
[1721594469381,0.063194,68203.0,68190.0,0.12178587]
[1721594469589,0.063194,68203.0,68191.0,0.12179449]
[1721594469590,0.0815,68201.0,68191.0,0.12179449]
[1721594469801,0.0815,68201.0,68183.0,0.000924]
[1721594469802,0.23131391,68201.0,68192.0,0.12179449]
[1721594470006,0.22851991,68201.0,68193.0,0.12179449]
[1721594470211,0.22851991,68201.0,68183.0,0.000924]
[1721594470420,0.22851991,68201.0,68184.0,0.12179537]
[1721594470692,0.22851991,68201.0,68185.0,0.12179537]
[1721594470895,0.22851991,68201.0,68186.0,0.12179537]
[1721594471111,0.22951991,68201.0,68188.0,0.001]
[1721594471321,0.2730733,68201.0,68189.0,0.12179537]
[1721594471522,0.2730733,68201.0,68183.0,0.000924]
[1721594471523,0.04800933,68200.0,68190.0,0.12179537]
[1721594471746,0.22951991,68201.0,68191.0,0.12179537]
[1721594471747,0.0845,68201.0,68191.0,0.12179537]
[1721594471965,0.0845,68201.0,68192.0,0.12179537]
[1721594472179,0.0845,68201.0,68193.0,0.12179537]
[1721594472396,0.24350933,68200.0,68194.0,0.12179537]
[1721594472600,0.24350933,68200.0,68183.0,0.000924]
[1721594472601,0.14701991,68200.0,68183.0,0.000924]
[1721594472835,0.1905737,68200.0,68184.0,0.12180114]
[1721594473057,0.1905737,68200.0,68183.0,0.000924]
[1721594473058,0.1905737,68200.0,68185.0,0.12179867]
[1721594473291,0.0604,68203.0,68188.0,0.07348942]
[1721594473506,0.0604,68203.0,68189.0,0.00293289]
[1721594473507,0.002794,68202.0,68189.0,0.00293289]
[1721594473716,0.003,68200.0,68190.0,0.121794]
[1721594473927,0.003,68200.0,68191.0,0.121794]
[1721594474146,0.003,68200.0,68190.0,0.14701991]
[1721594474147,0.1,68211.0,68192.0,0.121794]
[1721594474360,0.002794,68210.0,68196.0,0.07348942]
[1721594474568,0.04386162,68224.0,68196.0,0.07348942]
[1721594474569,0.003,68200.0,68197.0,0.26881391]
[1721594474779,0.003,68200.0,68198.0,0.121794]
[1721594474991,0.003,68200.0,68199.0,0.27174595]
[1721594475197,0.003,68200.0,68199.0,0.26877499]